[Event "*** Titled Tuesday Blitz"]
[Site "Chess.com"]
[Date "2020.11.24"]
[Round "5"]
[White "annacramling"]
[Black "A-S-00"]
[Result "1-0"]
[WhiteElo "2078"]
[BlackElo "2301"]
[TimeControl "180+1"]
[EndTime "11:12:20 PST"]
[Termination "annacramling won by resignation"]

1. d4 {[%clk 0:03:00.9]} 1... Nf6 {[%clk 0:02:57.3]} 2. c4 {[%clk 0:02:59.7]}
2... g6 {[%clk 0:02:54.2]} 3. Nc3 {[%clk 0:02:58.4]} 3... Bg7 {[%clk 0:02:53.2]}
4. e4 {[%clk 0:02:58.2]} 4... d6 {[%clk 0:02:53.2]} 5. h3 {[%clk 0:02:57.4]}
5... O-O {[%clk 0:02:48.2]} 6. Bg5 {[%clk 0:02:55.9]} 6... Nbd7 {[%clk
0:02:43.3]} 7. Nf3 {[%clk 0:02:54.9]} 7... h6 {[%clk 0:02:39.2]} 8. Be3 {[%clk
0:02:52.6]} 8... e5 {[%clk 0:02:34.6]} 9. d5 {[%clk 0:02:53]} 9... a5 {[%clk
0:02:29.4]} 10. Be2 {[%clk 0:02:51.5]} 10... Ne8 {[%clk 0:02:26.8]} 11. g4
{[%clk 0:02:50.7]} 11... Nc5 {[%clk 0:02:10.6]} 12. Qd2 {[%clk 0:02:44.9]} 12...
Kh7 {[%clk 0:02:09.5]} 13. O-O-O {[%clk 0:02:44.5]} 13... f5 {[%clk 0:02:05.7]}
14. gxf5 {[%clk 0:02:44.1]} 14... gxf5 {[%clk 0:02:05.4]} 15. exf5 {[%clk
0:02:43.5]} 15... Bxf5 {[%clk 0:02:04.9]} 16. Rdg1 {[%clk 0:02:41]} 16... a4
{[%clk 0:01:57.4]} 17. Ne1 {[%clk 0:01:54.1]} 17... Nf6 {[%clk 0:01:41.5]} 18.
Rxg7+ {[%clk 0:01:48.2]} 18... Kxg7 {[%clk 0:01:41.4]} 19. Bxh6+ {[%clk
0:01:48.2]} 19... Kf7 {[%clk 0:01:41.5]} 20. Qg5 {[%clk 0:01:17.6]} 20... Bg6
{[%clk 0:01:19.7]} 21. Bxf8 {[%clk 0:01:14]} 21... Qxf8 {[%clk 0:01:18.5]} 22.
Rg1 {[%clk 0:01:12.7]} 22... Qg7 {[%clk 0:01:14.6]} 23. h4 {[%clk 0:01:12.1]}
23... Qh7 {[%clk 0:01:13.4]} 24. Bg4 {[%clk 0:00:43.3]} 24... Nxg4 {[%clk
0:01:04.1]} 25. Qxg4 {[%clk 0:00:44.2]} 25... Bf5 {[%clk 0:01:00]} 26. Qf3
{[%clk 0:00:42.7]} 26... a3 {[%clk 0:00:47.9]} 27. b4 {[%clk 0:00:34.1]} 27...
Nb3+ {[%clk 0:00:34.5]} 28. axb3 {[%clk 0:00:27.5]} 28... a2 {[%clk 0:00:34.4]}
29. Nxa2 {[%clk 0:00:22.8]} 29... Rxa2 {[%clk 0:00:34.5]} 30. Rg5 {[%clk
0:00:18.3]} 30... Kf6 {[%clk 0:00:34.4]} 31. Ng2 {[%clk 0:00:07.1]} 31... e4
{[%clk 0:00:25.2]} 32. Qf4 {[%clk 0:00:06.2]} 32... Re2 {[%clk 0:00:18.8]} 33.
Ne3 {[%clk 0:00:05.9]} 33... Rxe3 {[%clk 0:00:19]} 34. fxe3 {[%clk 0:00:06]}
34... Qd7 {[%clk 0:00:18]} 35. Kd2 {[%clk 0:00:05.5]} 35... b5 {[%clk
0:00:15.7]} 36. h5 {[%clk 0:00:05.4]} 36... bxc4 {[%clk 0:00:15.4]} 37. bxc4
{[%clk 0:00:05.2]} 37... Qc8 {[%clk 0:00:14.3]} 38. h6 {[%clk 0:00:04.9]} 38...
Qd7 {[%clk 0:00:13.7]} 39. Rg7 {[%clk 0:00:03.7]} 39... Qa4 {[%clk 0:00:12.7]}
40. Qh4+ {[%clk 0:00:03.7]} 40... Ke5 {[%clk 0:00:11.8]} 41. Qe7+ {[%clk
0:00:04]} 1-0

[Event "*** Titled Tuesday Blitz"]
[Site "Chess.com"]
[Date "2020.11.24"]
[Round "5"]
[White "ChronicUnhappiness"]
[Black "DonPreuss"]
[Result "1/2-1/2"]
[WhiteElo "2362"]
[BlackElo "2239"]
[TimeControl "180+1"]
[EndTime "11:12:21 PST"]
[Termination "Game drawn by repetition"]

1. c4 {[%clk 0:03:00.9]} 1... Nc6 {[%clk 0:02:59.5]} 2. Nf3 {[%clk 0:02:59.7]}
2... e5 {[%clk 0:02:59.9]} 3. Nc3 {[%clk 0:02:59.3]} 3... Bc5 {[%clk 0:02:59.5]}
4. e3 {[%clk 0:02:58.5]} 4... d6 {[%clk 0:02:59.5]} 5. d4 {[%clk 0:02:55.6]}
5... exd4 {[%clk 0:02:58.7]} 6. exd4 {[%clk 0:02:55.5]} 6... Bb6 {[%clk
0:02:59.6]} 7. Be2 {[%clk 0:02:42.4]} 7... Nge7 {[%clk 0:02:59.6]} 8. O-O {[%clk
0:02:42.4]} 8... O-O {[%clk 0:02:59.9]} 9. Na4 {[%clk 0:02:20.9]} 9... Nf5
{[%clk 0:02:24.5]} 10. c5 {[%clk 0:01:46.8]} 10... dxc5 {[%clk 0:02:23.8]} 11.
dxc5 {[%clk 0:01:46.6]} 11... Ba5 {[%clk 0:02:21.4]} 12. a3 {[%clk 0:01:42.4]}
12... b5 {[%clk 0:02:18.8]} 13. Bxb5 {[%clk 0:01:34.9]} 13... Ncd4 {[%clk
0:02:16.6]} 14. Bd3 {[%clk 0:01:15]} 14... c6 {[%clk 0:02:11.3]} 15. b4 {[%clk
0:01:09.1]} 15... Bc7 {[%clk 0:02:11.1]} 16. Bb2 {[%clk 0:01:07]} 16... Nxf3+
{[%clk 0:02:04]} 17. Qxf3 {[%clk 0:01:05.7]} 17... Qg5 {[%clk 0:02:04.5]} 18.
Bxf5 {[%clk 0:00:41.7]} 18... Bxf5 {[%clk 0:02:01.2]} 19. Rfe1 {[%clk
0:00:29.7]} 19... Rad8 {[%clk 0:01:45.5]} 20. Be5 {[%clk 0:00:24.4]} 20... Rd3
{[%clk 0:01:22.2]} 21. Qe2 {[%clk 0:00:15]} 21... Rd2 {[%clk 0:00:45.5]} 22. Qe3
{[%clk 0:00:13.9]} 22... Qxe3 {[%clk 0:00:29.3]} 23. Rxe3 {[%clk 0:00:14.8]}
23... Bxe5 {[%clk 0:00:28.4]} 24. Rxe5 {[%clk 0:00:14.8]} 24... Be6 {[%clk
0:00:28.2]} 25. Nc3 {[%clk 0:00:12.8]} 25... Rfd8 {[%clk 0:00:27.9]} 26. h3
{[%clk 0:00:12.4]} 26... R8d3 {[%clk 0:00:26.9]} 27. Ne4 {[%clk 0:00:11.5]}
27... Re2 {[%clk 0:00:25.5]} 28. Kf1 {[%clk 0:00:09.8]} 28... Rb2 {[%clk
0:00:24.9]} 29. Ng5 {[%clk 0:00:08.9]} 29... Rdd2 {[%clk 0:00:18.8]} 30. Nxe6
{[%clk 0:00:08.4]} 30... Rxf2+ {[%clk 0:00:18.3]} 31. Ke1 {[%clk 0:00:08.3]}
31... fxe6 {[%clk 0:00:17.8]} 32. Rxe6 {[%clk 0:00:08.3]} 32... Rxg2 {[%clk
0:00:17.8]} 33. Kf1 {[%clk 0:00:08.4]} 33... Rbf2+ {[%clk 0:00:16.8]} 34. Ke1
{[%clk 0:00:08.1]} 34... Rb2 {[%clk 0:00:17]} 35. Kf1 {[%clk 0:00:08]} 35... Rh2
{[%clk 0:00:16.8]} 36. Kg1 {[%clk 0:00:08.2]} 36... Rxh3 {[%clk 0:00:14.5]} 37.
Rd1 {[%clk 0:00:06.9]} 37... h6 {[%clk 0:00:13.3]} 38. Rxc6 {[%clk 0:00:04.9]}
38... Rxa3 {[%clk 0:00:12.9]} 39. Rc7 {[%clk 0:00:04.5]} 39... Raa2 {[%clk
0:00:11.8]} 40. c6 {[%clk 0:00:04.1]} 40... Rg2+ {[%clk 0:00:10.3]} 41. Kh1
{[%clk 0:00:04.4]} 41... Rh2+ {[%clk 0:00:07.1]} 42. Kg1 {[%clk 0:00:04.7]}
42... Rag2+ {[%clk 0:00:06.6]} 43. Kf1 {[%clk 0:00:04.9]} 43... Rf2+ {[%clk
0:00:06.6]} 44. Kg1 {[%clk 0:00:04.8]} 44... Rfg2+ {[%clk 0:00:06.5]} 45. Kf1
{[%clk 0:00:04.8]} 45... Rf2+ {[%clk 0:00:06.5]} 46. Kg1 {[%clk 0:00:05.1]}
46... Rfg2+ {[%clk 0:00:06.9]} 1/2-1/2

[Event "*** Titled Tuesday Blitz"]
[Site "Chess.com"]
[Date "2020.11.24"]
[Round "5"]
[White "AliKa2810"]
[Black "exoticprincess"]
[Result "0-1"]
[WhiteElo "2590"]
[BlackElo "2897"]
[TimeControl "180+1"]
[EndTime "11:12:22 PST"]
[Termination "exoticprincess won by resignation"]

1. d4 {[%clk 0:03:00.9]} 1... Nf6 {[%clk 0:02:59.1]} 2. c4 {[%clk 0:03:01.5]}
2... c5 {[%clk 0:02:57.4]} 3. d5 {[%clk 0:03:01.4]} 3... e6 {[%clk 0:02:57.8]}
4. Nc3 {[%clk 0:03:00.8]} 4... exd5 {[%clk 0:02:58.7]} 5. cxd5 {[%clk
0:03:01.7]} 5... d6 {[%clk 0:02:59.1]} 6. Nf3 {[%clk 0:03:01.9]} 6... g6 {[%clk
0:02:59.2]} 7. Nd2 {[%clk 0:03:02.1]} 7... Bg7 {[%clk 0:02:57.8]} 8. e4 {[%clk
0:03:02.7]} 8... O-O {[%clk 0:02:56.8]} 9. Be2 {[%clk 0:03:03.2]} 9... Re8
{[%clk 0:02:57.7]} 10. O-O {[%clk 0:03:03]} 10... Nbd7 {[%clk 0:02:57.4]} 11. h3
{[%clk 0:03:03.1]} 11... Rb8 {[%clk 0:02:56.8]} 12. a4 {[%clk 0:03:00.8]} 12...
a6 {[%clk 0:02:51.8]} 13. Qc2 {[%clk 0:02:57.3]} 13... h5 {[%clk 0:02:49.2]} 14.
f4 {[%clk 0:02:41.7]} 14... h4 {[%clk 0:02:48.3]} 15. Nc4 {[%clk 0:02:40.4]}
15... Nb6 {[%clk 0:02:42.4]} 16. Na3 {[%clk 0:02:23.4]} 16... Bd7 {[%clk
0:02:33.9]} 17. a5 {[%clk 0:02:22.7]} 17... Nc8 {[%clk 0:02:32.5]} 18. Nc4
{[%clk 0:02:22.9]} 18... Bb5 {[%clk 0:02:32.2]} 19. Bd2 {[%clk 0:02:06]} 19...
Bxc4 {[%clk 0:02:26.3]} 20. Bxc4 {[%clk 0:02:06.9]} 20... Nh5 {[%clk 0:02:26.3]}
21. e5 {[%clk 0:02:04.1]} 21... Ng3 {[%clk 0:02:24.9]} 22. e6 {[%clk 0:02:00]}
22... Nxf1 {[%clk 0:02:17.6]} 23. Rxf1 {[%clk 0:01:49.6]} 23... f5 {[%clk
0:02:12.2]} 24. Be1 {[%clk 0:01:44]} 24... Bf6 {[%clk 0:02:10.5]} 25. Kh2 {[%clk
0:01:36.7]} 25... Kg7 {[%clk 0:02:10.1]} 26. Rg1 {[%clk 0:01:33.4]} 26... Ne7
{[%clk 0:02:08.6]} 27. g4 {[%clk 0:01:26.1]} 27... hxg3+ {[%clk 0:02:09.5]} 28.
Rxg3 {[%clk 0:01:26.6]} 28... Rh8 {[%clk 0:02:08.3]} 29. Ne2 {[%clk 0:01:13.1]}
29... Qf8 {[%clk 0:01:40.6]} 30. Ng1 {[%clk 0:01:11.1]} 30... Rh5 {[%clk
0:01:34.1]} 31. Nf3 {[%clk 0:01:04.6]} 31... Kg8 {[%clk 0:01:32]} 32. Qg2 {[%clk
0:00:50.7]} 32... Qh6 {[%clk 0:01:27.8]} 33. Bc3 {[%clk 0:00:36.5]} 33... Bxc3
{[%clk 0:01:23.8]} 34. bxc3 {[%clk 0:00:37.4]} 34... b5 {[%clk 0:01:23.5]} 35.
axb6 {[%clk 0:00:35.6]} 35... Rxb6 {[%clk 0:01:23.5]} 36. Ng5 {[%clk 0:00:33.1]}
36... Qg7 {[%clk 0:01:10.4]} 37. Qe2 {[%clk 0:00:30.3]} 37... a5 {[%clk
0:01:03.3]} 38. Qa2 {[%clk 0:00:20.4]} 38... Rh4 {[%clk 0:00:53.7]} 39. Rf3
{[%clk 0:00:20.3]} 39... Qh6 {[%clk 0:00:45.7]} 40. Kg3 {[%clk 0:00:10.6]} 40...
Rxf4 {[%clk 0:00:44.1]} 41. Kxf4 {[%clk 0:00:10.6]} 41... Qh4+ {[%clk 0:00:44]}
42. Ke3 {[%clk 0:00:10]} 42... Qxg5+ {[%clk 0:00:44.5]} 43. Kf2 {[%clk
0:00:09.6]} 43... Qc1 {[%clk 0:00:43.8]} 44. Qxa5 {[%clk 0:00:07.1]} 44... Rb2+
{[%clk 0:00:43.7]} 45. Be2 {[%clk 0:00:07.4]} 45... Kg7 {[%clk 0:00:27.8]} 46.
Qc7 {[%clk 0:00:07.4]} 46... Qg5 {[%clk 0:00:23.5]} 47. Qxd6 {[%clk 0:00:06.8]}
47... Qh4+ {[%clk 0:00:24]} 48. Ke3 {[%clk 0:00:06.5]} 48... Qe4+ {[%clk
0:00:21.5]} 49. Kf2 {[%clk 0:00:05.5]} 49... Qxe2+ {[%clk 0:00:21.6]} 50. Kg3
{[%clk 0:00:05.4]} 50... Qh2+ {[%clk 0:00:21.6]} 0-1

[Event "*** Titled Tuesday Blitz"]
[Site "Chess.com"]
[Date "2020.11.24"]
[Round "5"]
[White "Beca95"]
[Black "Tayson_7"]
[Result "1-0"]
[WhiteElo "2927"]
[BlackElo "2690"]
[TimeControl "180+1"]
[EndTime "11:12:23 PST"]
[Termination "Beca95 won by resignation"]

1. d4 {[%clk 0:03:00.9]} 1... Nf6 {[%clk 0:02:56.5]} 2. c4 {[%clk 0:02:58.8]}
2... c5 {[%clk 0:02:56.2]} 3. d5 {[%clk 0:02:57.9]} 3... e6 {[%clk 0:02:56.6]}
4. Nc3 {[%clk 0:02:54.3]} 4... exd5 {[%clk 0:02:56.1]} 5. cxd5 {[%clk
0:02:52.8]} 5... d6 {[%clk 0:02:56.6]} 6. Nf3 {[%clk 0:02:51.7]} 6... g6 {[%clk
0:02:57]} 7. Bg5 {[%clk 0:02:50.4]} 7... Bg7 {[%clk 0:02:56.4]} 8. e4 {[%clk
0:02:48.6]} 8... O-O {[%clk 0:02:39]} 9. Nd2 {[%clk 0:02:45.3]} 9... a6 {[%clk
0:02:34.9]} 10. a4 {[%clk 0:02:43.9]} 10... Re8 {[%clk 0:02:30.7]} 11. Be2
{[%clk 0:02:42.7]} 11... Nbd7 {[%clk 0:02:27.5]} 12. O-O {[%clk 0:02:40.5]}
12... Rb8 {[%clk 0:02:21.7]} 13. Bh4 {[%clk 0:02:36.6]} 13... Qc7 {[%clk
0:02:16.3]} 14. a5 {[%clk 0:02:32]} 14... b5 {[%clk 0:02:09.7]} 15. axb6 {[%clk
0:02:31.5]} 15... Rxb6 {[%clk 0:02:10]} 16. Qc2 {[%clk 0:02:24.8]} 16... Rb4
{[%clk 0:02:05.3]} 17. Bg3 {[%clk 0:02:19.7]} 17... Ne5 {[%clk 0:01:44]} 18. b3
{[%clk 0:02:02.8]} 18... h5 {[%clk 0:01:30.1]} 19. h3 {[%clk 0:01:58.7]} 19...
g5 {[%clk 0:01:14]} 20. Bxa6 {[%clk 0:01:41.1]} 20... Nfd7 {[%clk 0:01:06.9]}
21. Be2 {[%clk 0:01:33.2]} 21... h4 {[%clk 0:01:06.3]} 22. Bh2 {[%clk
0:01:32.9]} 22... Nf8 {[%clk 0:00:59.4]} 23. f4 {[%clk 0:01:23.4]} 23... gxf4
{[%clk 0:01:00.3]} 24. Rxf4 {[%clk 0:01:22.5]} 24... Qe7 {[%clk 0:00:53.3]} 25.
Kh1 {[%clk 0:01:07.8]} 25... Nfg6 {[%clk 0:00:51.9]} 26. Rf2 {[%clk 0:01:06.6]}
26... Qg5 {[%clk 0:00:49.9]} 27. Nc4 {[%clk 0:00:37.2]} 27... Nxc4 {[%clk
0:00:44.9]} 28. Bxc4 {[%clk 0:00:35]} 28... Ne5 {[%clk 0:00:45]} 29. Bf1 {[%clk
0:00:20.1]} 29... Bd7 {[%clk 0:00:44.8]} 30. Bf4 {[%clk 0:00:18.9]} 30... Qg6
{[%clk 0:00:42.3]} 31. Ra7 {[%clk 0:00:14.6]} 31... Reb8 {[%clk 0:00:35.3]} 32.
Ra3 {[%clk 0:00:10.4]} 32... f5 {[%clk 0:00:30.5]} 33. exf5 {[%clk 0:00:09.2]}
33... Bxf5 {[%clk 0:00:31.4]} 34. Qd1 {[%clk 0:00:08.6]} 34... Nd3 {[%clk
0:00:30.1]} 35. Bxd3 {[%clk 0:00:08.3]} 35... Bxd3 {[%clk 0:00:31]} 36. Rf3
{[%clk 0:00:08.6]} 36... Bc2 {[%clk 0:00:28.2]} 37. Qd2 {[%clk 0:00:08.1]} 37...
Rxb3 {[%clk 0:00:28]} 38. Rxb3 {[%clk 0:00:07.7]} 38... Rxb3 {[%clk 0:00:28.9]}
39. Bh2 {[%clk 0:00:06.4]} 39... Bd4 {[%clk 0:00:26.3]} 40. Ne2 {[%clk
0:00:04.8]} 40... Rb1+ {[%clk 0:00:25.9]} 41. Ng1 {[%clk 0:00:04.2]} 41... Be4
{[%clk 0:00:25.6]} 42. Rf4 {[%clk 0:00:04.4]} 42... Bxd5 {[%clk 0:00:18.7]} 43.
Rg4 {[%clk 0:00:04.3]} 43... Qxg4 {[%clk 0:00:17.4]} 44. hxg4 {[%clk 0:00:05.2]}
44... Kf7 {[%clk 0:00:15.1]} 45. Qf4+ {[%clk 0:00:04.8]} 45... Ke7 {[%clk
0:00:14]} 46. Qg5+ {[%clk 0:00:05.2]} 1-0

[Event "*** Titled Tuesday Blitz"]
[Site "Chess.com"]
[Date "2020.11.24"]
[Round "5"]
[White "Meri-Arabidze"]
[Black "mjray79"]
[Result "0-1"]
[WhiteElo "2593"]
[BlackElo "2445"]
[TimeControl "180+1"]
[EndTime "11:12:23 PST"]
[Termination "mjray79 won by checkmate"]

1. Nf3 {[%clk 0:03:00.9]} 1... Nf6 {[%clk 0:02:59.7]} 2. b3 {[%clk 0:03:01.5]}
2... g6 {[%clk 0:02:59.1]} 3. Bb2 {[%clk 0:03:02.4]} 3... Bg7 {[%clk 0:02:59.3]}
4. g3 {[%clk 0:03:03.1]} 4... d6 {[%clk 0:02:59.1]} 5. Bg2 {[%clk 0:03:03.6]}
5... O-O {[%clk 0:02:58.8]} 6. O-O {[%clk 0:03:04.3]} 6... c5 {[%clk 0:02:50.9]}
7. c4 {[%clk 0:03:04.4]} 7... Nc6 {[%clk 0:02:50]} 8. Nc3 {[%clk 0:03:04.6]}
8... Rb8 {[%clk 0:02:46.4]} 9. Rc1 {[%clk 0:03:04]} 9... a6 {[%clk 0:02:46.2]}
10. d3 {[%clk 0:03:03.4]} 10... b5 {[%clk 0:02:44.7]} 11. Nd2 {[%clk 0:03:02.8]}
11... Bd7 {[%clk 0:02:41.3]} 12. Ba1 {[%clk 0:02:53.2]} 12... Ne8 {[%clk
0:02:20.3]} 13. Nd5 {[%clk 0:02:52.2]} 13... Bxa1 {[%clk 0:02:12.3]} 14. Rxa1
{[%clk 0:02:53.1]} 14... Ng7 {[%clk 0:02:11.5]} 15. Ne4 {[%clk 0:02:48.6]} 15...
Nd4 {[%clk 0:02:08]} 16. e3 {[%clk 0:02:47.4]} 16... Ndf5 {[%clk 0:02:06]} 17.
Qc2 {[%clk 0:02:45.4]} 17... Bc6 {[%clk 0:01:58.7]} 18. Qc3 {[%clk 0:02:37.7]}
18... Bxd5 {[%clk 0:01:37.3]} 19. cxd5 {[%clk 0:02:38.6]} 19... Rc8 {[%clk
0:01:33.7]} 20. a4 {[%clk 0:02:35.2]} 20... Qb6 {[%clk 0:01:29.4]} 21. axb5
{[%clk 0:02:34.7]} 21... axb5 {[%clk 0:01:30.3]} 22. Ra2 {[%clk 0:02:32.7]}
22... Rc7 {[%clk 0:01:30.1]} 23. Rfa1 {[%clk 0:02:32.6]} 23... Rfc8 {[%clk
0:01:26.3]} 24. h4 {[%clk 0:02:29.3]} 24... c4 {[%clk 0:01:23]} 25. dxc4 {[%clk
0:01:59]} 25... bxc4 {[%clk 0:01:23.9]} 26. b4 {[%clk 0:01:41]} 26... Rb7 {[%clk
0:01:23.2]} 27. Ra8 {[%clk 0:01:39.9]} 27... Rc7 {[%clk 0:01:12.2]} 28. h5
{[%clk 0:01:33.3]} 28... gxh5 {[%clk 0:01:09.6]} 29. Bh3 {[%clk 0:01:27.6]}
29... h6 {[%clk 0:01:04]} 30. Nf6+ {[%clk 0:01:01.1]} 30... exf6 {[%clk
0:00:58.2]} 31. Qxf6 {[%clk 0:01:01.2]} 31... Qb7 {[%clk 0:00:52]} 32. Rxc8+
{[%clk 0:00:38]} 32... Qxc8 {[%clk 0:00:52.9]} 33. e4 {[%clk 0:00:38.2]} 33...
c3 {[%clk 0:00:49.5]} 34. exf5 {[%clk 0:00:36.5]} 34... c2 {[%clk 0:00:49]} 35.
Rc1 {[%clk 0:00:36.6]} 35... Rc4 {[%clk 0:00:43.5]} 36. Qxh6 {[%clk 0:00:36.5]}
36... f6 {[%clk 0:00:28.5]} 37. Qxf6 {[%clk 0:00:31.9]} 37... Rxb4 {[%clk
0:00:28.6]} 38. Qg5 {[%clk 0:00:13.9]} 38... Rb1 {[%clk 0:00:28.2]} 39. Kh2
{[%clk 0:00:06.9]} 39... Qc5 {[%clk 0:00:21.2]} 40. Kg2 {[%clk 0:00:04.3]} 40...
Qxd5+ {[%clk 0:00:19.7]} 41. Kh2 {[%clk 0:00:04.6]} 41... Rxc1 {[%clk
0:00:17.7]} 42. Qxc1 {[%clk 0:00:04.6]} 42... Qd1 {[%clk 0:00:17.7]} 43. Qg5
{[%clk 0:00:01.7]} 43... c1=Q {[%clk 0:00:17.8]} 44. Qd8+ {[%clk 0:00:01.2]}
44... Kh7 {[%clk 0:00:17.6]} 45. Bg2 {[%clk 0:00:01.7]} 45... Qg1+ {[%clk
0:00:16.1]} 46. Kh3 {[%clk 0:00:02]} 46... Qh1+ {[%clk 0:00:16.6]} 47. Bxh1
{[%clk 0:00:01.9]} 47... Qxh1# {[%clk 0:00:17.5]} 0-1

[Event "*** Titled Tuesday Blitz"]
[Site "Chess.com"]
[Date "2020.11.24"]
[Round "5"]
[White "mr65"]
[Black "enriquebutti"]
[Result "0-1"]
[WhiteElo "2210"]
[BlackElo "1964"]
[TimeControl "180+1"]
[EndTime "11:12:25 PST"]
[Termination "enriquebutti won on time"]

1. e4 {[%clk 0:03:00.9]} 1... c5 {[%clk 0:02:59.6]} 2. Nf3 {[%clk 0:02:59.4]}
2... d6 {[%clk 0:02:57.2]} 3. d4 {[%clk 0:02:58.7]} 3... cxd4 {[%clk 0:02:57]}
4. Nxd4 {[%clk 0:02:58.3]} 4... Nf6 {[%clk 0:02:56.6]} 5. Nc3 {[%clk 0:02:57.9]}
5... a6 {[%clk 0:02:56.4]} 6. f4 {[%clk 0:02:57.2]} 6... e6 {[%clk 0:02:55.7]}
7. Bd3 {[%clk 0:02:55.3]} 7... b5 {[%clk 0:02:53.5]} 8. a3 {[%clk 0:02:53.2]}
8... Bb7 {[%clk 0:02:52.9]} 9. Be3 {[%clk 0:02:49.8]} 9... Nbd7 {[%clk
0:02:52.2]} 10. O-O {[%clk 0:02:47.9]} 10... Rc8 {[%clk 0:02:51.1]} 11. Qe2
{[%clk 0:02:39.2]} 11... Rxc3 {[%clk 0:02:49.2]} 12. bxc3 {[%clk 0:02:37.3]}
12... Nxe4 {[%clk 0:02:48.4]} 13. f5 {[%clk 0:02:27.1]} 13... e5 {[%clk
0:02:47.4]} 14. Nb3 {[%clk 0:02:14.6]} 14... Nxc3 {[%clk 0:02:38.4]} 15. Qe1
{[%clk 0:02:12.9]} 15... Nd5 {[%clk 0:02:31.8]} 16. Bd2 {[%clk 0:02:06.3]} 16...
Be7 {[%clk 0:02:24.8]} 17. Rd1 {[%clk 0:01:56.1]} 17... O-O {[%clk 0:02:22.7]}
18. c4 {[%clk 0:01:44.3]} 18... bxc4 {[%clk 0:02:21]} 19. Bxc4 {[%clk
0:01:43.6]} 19... N7f6 {[%clk 0:02:19.1]} 20. Kh1 {[%clk 0:01:42]} 20... Qd7
{[%clk 0:02:03.8]} 21. Bg5 {[%clk 0:01:38.5]} 21... Qa4 {[%clk 0:01:54.8]} 22.
Bxd5 {[%clk 0:01:28.2]} 22... Nxd5 {[%clk 0:01:52]} 23. Bxe7 {[%clk 0:01:26.6]}
23... Nxe7 {[%clk 0:01:51.1]} 24. Nd2 {[%clk 0:01:26.3]} 24... f6 {[%clk
0:01:37.3]} 25. Nf3 {[%clk 0:01:10.4]} 25... Nxf5 {[%clk 0:01:26.3]} 26. Qb4
{[%clk 0:00:56.7]} 26... Qxb4 {[%clk 0:01:24.6]} 27. axb4 {[%clk 0:00:55.5]}
27... Ne3 {[%clk 0:01:23.8]} 28. Rfe1 {[%clk 0:00:50.4]} 28... Nxd1 {[%clk
0:01:23.1]} 29. Rxd1 {[%clk 0:00:50.1]} 29... d5 {[%clk 0:01:22.7]} 30. Rc1
{[%clk 0:00:49.8]} 30... d4 {[%clk 0:01:22.3]} 31. Rc7 {[%clk 0:00:48]} 31...
Bxf3 {[%clk 0:01:21.5]} 32. gxf3 {[%clk 0:00:46.6]} 32... Rd8 {[%clk 0:01:21.7]}
33. Rc2 {[%clk 0:00:38.1]} 33... f5 {[%clk 0:01:21]} 34. Kg2 {[%clk 0:00:36.3]}
34... e4 {[%clk 0:01:20.4]} 35. fxe4 {[%clk 0:00:35.3]} 35... fxe4 {[%clk
0:01:20.2]} 36. Rc1 {[%clk 0:00:34.3]} 36... d3 {[%clk 0:01:19.9]} 37. Kf2
{[%clk 0:00:33.8]} 37... Rd4 {[%clk 0:01:16.6]} 38. Rb1 {[%clk 0:00:27]} 38...
Kf7 {[%clk 0:01:14.6]} 39. Ke3 {[%clk 0:00:26.7]} 39... Rc4 {[%clk 0:01:14.4]}
40. Ra1 {[%clk 0:00:22.2]} 40... Rxb4 {[%clk 0:01:11.7]} 41. Rxa6 {[%clk
0:00:21.7]} 41... g5 {[%clk 0:01:07.2]} 42. Ra7+ {[%clk 0:00:19.3]} 42... Kg6
{[%clk 0:01:06.5]} 43. Ra6+ {[%clk 0:00:19.1]} 43... Kh5 {[%clk 0:01:06.3]} 44.
h3 {[%clk 0:00:18.8]} 44... Rb2 {[%clk 0:00:55.4]} 45. Kxe4 {[%clk 0:00:14.6]}
45... d2 {[%clk 0:00:55.2]} 46. Rd6 {[%clk 0:00:14]} 46... Kh4 {[%clk 0:00:53]}
47. Kf3 {[%clk 0:00:13.8]} 47... h5 {[%clk 0:00:50.1]} 48. Ke3 {[%clk
0:00:09.9]} 48... Kxh3 {[%clk 0:00:48.6]} 49. Kf3 {[%clk 0:00:08.7]} 49... g4+
{[%clk 0:00:48.1]} 50. Kf4 {[%clk 0:00:07.9]} 50... h4 {[%clk 0:00:47.4]} 51.
Kg5 {[%clk 0:00:06.6]} 51... g3 {[%clk 0:00:44]} 52. Rd3 {[%clk 0:00:04.9]}
52... Kh2 {[%clk 0:00:43.2]} 53. Kxh4 {[%clk 0:00:04.7]} 53... g2 {[%clk
0:00:42.9]} 54. Rh3+ {[%clk 0:00:04]} 54... Kg1 {[%clk 0:00:42.4]} 0-1